fUSD/lending_fUSD_20260218
["ID","MTS","AMOUNT","RATE_DAILY","PERIOD"]
[405945714,1771434644235,-1223.27,0.00017999,2]
[405945715,1771434644244,-1223.27,0.00017999,2]
[405945716,1771434644254,-1223.27,0.00017999,2]
[405945717,1771434644263,-1223.27,0.00017999,2]
[405945718,1771434644272,-1223.4953454,0.00017999,2]
[405945719,1771434644283,-787.2,0.00017999,2]
[405945720,1771434644292,-787.2,0.00017999,2]
[405945721,1771434644302,-787.2,0.00017999,2]
[405945722,1771434644313,-787.2,0.00017999,2]
[405945723,1771434644322,-787.2,0.00017999,2]
[405945724,1771434644332,-787.2,0.00017999,2]
[405945725,1771434644342,-787.2,0.00017999,2]
[405945726,1771434644351,-787.2,0.00017999,2]
[405945727,1771434644361,-787.2,0.00017999,2]
[405945728,1771434644370,-787.2,0.00017999,2]
[405945729,1771434644379,-787.2,0.00017999,2]
[405945730,1771434644389,-787.2,0.00017999,2]
[405945731,1771434644398,-787.2,0.00017999,2]
[405945732,1771434644407,-787.2,0.00017999,2]
[405945733,1771434644416,-787.3,0.00017999,2]
[405945734,1771434644426,-300.0,0.00017999,2]
[405945735,1771434644436,-500.0,0.00017999,2]
[405945736,1771434644445,-500.0,0.00017999,2]
[405945737,1771434644454,-500.0,0.00017999,2]
[405945738,1771434644464,-500.0,0.00017999,2]
[405945739,1771434644475,-500.0,0.00017999,2]
[405945740,1771434644484,-500.0,0.00017999,2]
[405945741,1771434644493,-500.0,0.00017999,2]
[405945742,1771434644503,-300.0,0.00017999,2]
[405945743,1771434644512,-500.0,0.00017999,2]
[405945744,1771434644522,-500.0,0.00017999,2]
[405945745,1771434644531,-500.0,0.00017999,2]
[405945746,1771434644541,-500.0,0.00017999,2]
[405945747,1771434644551,-500.0,0.00017999,2]
[405945749,1771434644561,-500.0,0.00017999,2]
[405945751,1771434644570,-500.0,0.00017999,2]
[405945753,1771434644579,-500.0,0.00017999,2]
[405945754,1771434644589,-500.0,0.00017999,2]
[405945755,1771434644599,-500.0,0.00017999,2]
[405945756,1771434644609,-500.0,0.00017999,2]
[405945758,1771434644619,-500.0,0.00017999,2]
[405945759,1771434644630,-500.0,0.00017999,2]
[405945760,1771434644639,-500.0,0.00017999,2]
[405945761,1771434644649,-500.0,0.00017999,2]
[405945762,1771434644659,-500.0,0.00017999,2]
[405945763,1771434644669,-500.0,0.00017999,2]
[405945764,1771434644679,-500.0,0.00017999,2]
[405945765,1771434644688,-620.1235705,0.00017999,2]
[405945766,1771434644698,-500.0,0.00017999,2]
[405945767,1771434644708,-500.0,0.00017999,2]
[405945768,1771434644717,-500.0,0.00017999,2]
[405945769,1771434644727,-500.0,0.00017999,2]
[405945770,1771434644737,-500.0,0.00017999,2]
[405945771,1771434644747,-500.0,0.00017999,2]
[405945772,1771434644757,-500.0,0.00017999,2]
[405945773,1771434644766,-500.0,0.00017999,2]
[405945774,1771434644776,-500.0,0.00017999,2]
[405945775,1771434644786,-500.0,0.00017999,2]
[405945776,1771434644795,-500.0,0.00017999,2]
[405945777,1771434644806,-216.12,0.00017999,2]
[405945778,1771434644816,-500.0,0.00017999,2]
[405945779,1771434644831,-500.0,0.00017999,2]
[405945780,1771434644847,-500.0,0.00017999,2]
[405945781,1771434644858,-551.5455423,0.00017999,2]
[405945782,1771434644874,-500.0,0.00017999,2]
[405945783,1771434644884,-500.0,0.00017999,2]
[405945784,1771434644893,-500.0,0.00017999,2]
[405945785,1771434644904,-500.0,0.00017999,2]
[405945786,1771434644915,-626.40473759,0.00017999,2]
[405945787,1771434644924,-300.0,0.00017999,2]
[405945788,1771434644934,-666.0,0.00017999,2]
[405945789,1771434644944,-297.03102847,0.00017999,2]
[405945790,1771434644953,-693131.60354291,0.00018,2]
[405945791,1771434645088,-422.28753396,0.00018,2]
[405945792,1771434645099,-356.0,0.00018,2]
[405945793,1771434645115,-2741169.25047086,0.00018,2]
[405945794,1771434645124,-528.47828338,0.00018,2]
[405945795,1771434645135,-3488166.60350432,0.00018,2]
[405945796,1771434645153,-240732.26838925,0.00018,2]
[405945797,1771434645164,-153387.10574839,0.00018,2]
[405945798,1771434645177,-1691.02,0.00018,2]
[405945799,1771434645403,-2072.68429711,0.000109,2]
[405945800,1771434645414,-3003.40504861,0.00018,2]
[405945801,1771434645492,-11317.17492914,0.00018,2]
[405945802,1771434645503,-1222.61932677,0.00018,2]
[405945803,1771434645515,-1068.475,0.00018,2]
[405945804,1771434645529,-841.78985,0.00018,2]
[405945805,1771434645541,-2099.213705,0.00018,2]
[405945806,1771434645554,-5540.88909416,0.00018,2]
[405945807,1771434645565,-591.0,0.00018,2]
[405945812,1771434653777,-725988.61205176,0.00018,2]
[405945813,1771434653857,-14902.98477118,0.00018,2]
[405945817,1771435296228,2651.971,6.458e-05,2]
[405945818,1771435296420,270.203,6.458e-05,2]
[405945821,1771435781281,465.91,5.773e-05,2]
[405945822,1771435781495,465.91,5.827e-05,2]
[405945823,1771435781921,465.91,5.881e-05,2]
[405945824,1771435782139,465.91,5.934e-05,2]
[405945825,1771435782656,465.91,5.988e-05,2]
[405945826,1771435782797,465.91,6.041e-05,2]
[405945827,1771435783053,465.91,6.095e-05,2]
[405945828,1771435783268,465.91,6.149e-05,2]
[405945829,1771435783502,465.91,6.202e-05,2]
[405945830,1771435783764,465.91,6.256e-05,2]
[405945831,1771435784016,465.91,6.309e-05,2]
[405945832,1771435784270,465.91,6.363e-05,2]
[405945833,1771435784491,465.91,6.417e-05,2]
[405945834,1771435784703,465.91,6.47e-05,2]
[405945835,1771435784913,465.91,6.524e-05,2]
[405945842,1771435831842,-207.0,6.569e-05,2]
[405945844,1771435831852,-250.0,6.57e-05,2]
[405945846,1771435831861,-330.13415081,6.578e-05,2]
[405945847,1771435831874,-135.77584919,6.578e-05,2]
[405945848,1771435831884,-250.0,6.584e-05,2]
[405945849,1771435831893,-465.91,6.631e-05,2]
[405945850,1771435831902,-309.0,6.658e-05,2]
[405945851,1771435831912,-386.0,6.669e-05,2]
[405945852,1771435831921,-1200.0,6.669e-05,2]
[405945853,1771435831930,-300.0,6.669e-05,2]
[405945854,1771435831939,-5497.75168438,6.67e-05,2]
[405945855,1771435831954,-12506.90995032,6.67e-05,2]
[405945856,1771435831965,-4444.36868528,6.67e-05,2]
[405945857,1771435831976,-303.8818997,6.67e-05,2]
[405945858,1771435832004,-610.53759736,6.67e-05,2]
[405945859,1771435832015,-385.00293256,6.67e-05,2]
[405945860,1771435832027,-422.81516774,6.67e-05,2]
[405945889,1771435837919,-3424.37572502,6.67e-05,2]
[405945890,1771435837973,-754.07848955,6.67e-05,2]
[405945891,1771435837987,-5926.47101225,6.67e-05,2]
[405945892,1771435837996,-299.99,6.673e-05,2]
[405945893,1771435838006,-150.0,6.678e-05,2]
[405945894,1771435838016,-9460.81491361,6.679e-05,2]
[405945895,1771435838027,-332.99999985,6.679e-05,2]
[405945896,1771435838040,-206.17508654,6.679e-05,2]
[405945897,1771435838049,-101.75448884,6.679e-05,2]
[405945898,1771435838060,-1102.44551116,6.679e-05,2]
[405945899,1771435838070,-150.99,6.679e-05,2]
[405945900,1771435838080,-4259.82,6.679e-05,2]
[405945901,1771435838090,-6499.95,6.679e-05,2]
[405945902,1771435838099,-9999.99,6.679e-05,2]
[405945903,1771435838108,-1343.65,6.68e-05,2]
[405945904,1771435838117,-999.99,6.68e-05,2]
[405945905,1771435838127,-5137.15540414,6.68e-05,2]
[405945916,1771435840150,-623.57661687,6.68e-05,2]
[405945917,1771435840162,-4239.25797899,6.68e-05,2]
[405945918,1771435840171,-150.99,6.68e-05,2]
[405945919,1771435840180,-7659.5,6.68e-05,2]
[405945920,1771435840193,-465.91,6.685e-05,2]
[405945921,1771435840202,-356.0,6.689e-05,2]
[405945922,1771435840211,-465.91,6.738e-05,2]
[405945923,1771435840221,-465.91,6.792e-05,2]
[405945924,1771435840230,-200.0,7.061e-05,2]
[405945925,1771435840241,-169.01,7.19e-05,2]
[405945926,1771435840250,-250.0,7.219e-05,2]
[405945927,1771435840261,-1680.0,7.336e-05,2]
[405945928,1771435840270,-255.0,7.346e-05,2]
[405945929,1771435840280,-209.93,7.488e-05,2]
[405945930,1771435840289,-166.66,7.525e-05,2]
[405945931,1771435840299,-18313.22,7.675e-05,2]
[405945932,1771435840309,-166.66,7.774e-05,2]
[405945933,1771435840318,-89460.2688,7.9e-05,2]
[405945934,1771435840327,-6737.6189,7.9e-05,2]
[405945935,1771435840336,-15666.07161909,8e-05,2]
[405945936,1771435840345,-166.66,8.022e-05,2]
[405945937,1771435840355,-2351.0,8.07e-05,2]
[405945938,1771435840364,-433.0,8.08e-05,2]
[405945939,1771435840374,-19203.77,8.145e-05,2]
[405945940,1771435840383,-533.25,8.219e-05,2]
[405945941,1771435840393,-16768.55,8.219e-05,2]
[405945942,1771435840402,-21138.47,8.219e-05,2]
[405945943,1771435840412,-166.66,8.271e-05,2]
[405945944,1771435840421,-502.51166601,8.367e-05,2]
[405945945,1771435840430,-500.0,8.367e-05,2]
[405945946,1771435840440,-500.0,8.367e-05,2]
[405945947,1771435840449,-500.0,8.367e-05,2]
[405945948,1771435840458,-500.0,8.367e-05,2]
[405945949,1771435840467,-502.35320902,8.367e-05,2]
[405945950,1771435840476,-500.0,8.367e-05,2]
[405945951,1771435840485,-500.0,8.367e-05,2]
[405945952,1771435840494,-169.01,8.388e-05,2]
[405945953,1771435840504,-166.66,8.519e-05,2]
[405945954,1771435840518,-533.25,8.676e-05,2]
[405945955,1771435840527,-250.0,8.68e-05,2]
[405945956,1771435840536,-166.66,8.767e-05,2]
[405945957,1771435840545,-3292.0,8.877e-05,2]
[405945958,1771435840554,-736.0,8.888e-05,2]
[405945959,1771435840564,-500.0,8.915e-05,2]
[405945960,1771435840573,-1000.0,8.915e-05,2]
[405945961,1771435840582,-1000.0,8.915e-05,2]
[405945962,1771435840591,-500.92647612,8.915e-05,2]
[405945963,1771435840600,-1000.0,8.915e-05,2]
[405945964,1771435840609,-1000.0,8.915e-05,2]
[405945965,1771435840618,-198.93,9.109e-05,2]
[405945966,1771435840627,-533.25,9.132e-05,2]
[405945967,1771435840636,-413.92,9.383e-05,2]
[405945968,1771435840645,-198.93,9.446e-05,2]
[405945969,1771435840654,-1500.0,9.463e-05,2]
[405945970,1771435840663,-1500.0,9.463e-05,2]
[405945971,1771435840672,-1500.0,9.463e-05,2]
[405945972,1771435840681,-169.01,9.586e-05,2]
[405945973,1771435840690,-533.25,9.589e-05,2]
[405945974,1771435840699,-367.77,9.66e-05,2]
[405945975,1771435840709,-4609.0,9.764e-05,2]
[405945976,1771435840718,-1252.0,9.777e-05,2]
[405945977,1771435840727,-255.04,9.785e-05,2]
[405945978,1771435840736,-500.0,0.0001,2]
[405945979,1771435840746,-500.0,0.0001,2]
[405945980,1771435840754,-500.0,0.0001,2]
[405945981,1771435840763,-500.0,0.0001,2]
[405945982,1771435840773,-500.0,0.0001,2]
[405945983,1771435840781,-500.0,0.0001,2]
[405945984,1771435840791,-500.0,0.0001,2]
[405945985,1771435840801,-500.0,0.0001,2]
[405945986,1771435840810,-500.0,0.0001,2]
[405945987,1771435840819,-500.0,0.0001,2]
[405945988,1771435840828,-500.0,0.0001,2]
[405945989,1771435840838,-500.0,0.0001,2]
[405945990,1771435840847,-500.0,0.0001,2]
[405945991,1771435840856,-500.0,0.0001,2]
[405945992,1771435840867,-500.0,0.0001,2]
[405945993,1771435840877,-500.0,0.0001,2]
[405945994,1771435840886,-200.0,0.0001,2]
[405945995,1771435840896,-500.0,0.0001,2]
[405945996,1771435840906,-500.0,0.0001,2]
[405945997,1771435840915,-500.0,0.0001,2]
[405945998,1771435840924,-500.0,0.0001,2]
[405945999,1771435840933,-151.0,0.0001,2]
[405946000,1771435840941,-500.0,0.0001,2]
[405946001,1771435840950,-151.0,0.0001,2]
[405946002,1771435840960,-500.0,0.0001,2]
[405946003,1771435840969,-151.0,0.0001,2]
[405946004,1771435840978,-151.0,0.0001,2]
[405946005,1771435840987,-151.0,0.0001,2]
[405946006,1771435840996,-151.0,0.0001,2]
[405946007,1771435841006,-200.0,0.0001,2]
[405946008,1771435841015,-151.0,0.0001,2]
[405946009,1771435841025,-151.0,0.0001,2]
[405946010,1771435841034,-151.0,0.0001,2]
[405946011,1771435841043,-151.0,0.0001,2]
[405946012,1771435841052,-151.0,0.0001,2]
[405946013,1771435841061,-151.0,0.0001,2]
[405946014,1771435841070,-151.0,0.0001,2]
[405946015,1771435841080,-151.0,0.0001,2]
[405946016,1771435841089,-151.0,0.0001,2]
[405946017,1771435841098,-151.0,0.0001,2]
[405946018,1771435841107,-151.0,0.0001,2]
[405946019,1771435841116,-151.0,0.0001,2]
[405946020,1771435841125,-151.0,0.0001,2]
[405946021,1771435841134,-151.0,0.0001,2]
[405946022,1771435841143,-500.0,0.0001,2]
[405946023,1771435841152,-151.0,0.0001,2]
[405946024,1771435841160,-151.0,0.0001,2]
[405946025,1771435841169,-151.0,0.0001,2]
[405946026,1771435841178,-151.0,0.0001,2]
[405946027,1771435841188,-151.0,0.0001,2]
[405946028,1771435841201,-151.0,0.0001,2]
[405946029,1771435841210,-151.0,0.0001,2]
[405946030,1771435841219,-151.0,0.0001,2]
[405946031,1771435841228,-151.0,0.0001,2]
[405946032,1771435841238,-151.0,0.0001,2]
[405946033,1771435841247,-151.0,0.0001,2]
[405946034,1771435841256,-995.11978986,0.0001,2]
[405946035,1771435841267,-1000.0,0.0001,2]
[405946036,1771435841276,-2000.0,0.00010011,2]
[405946037,1771435841285,-1005.47562165,0.00010011,2]
[405946038,1771435841295,-2000.0,0.00010011,2]
[405946039,1771435841304,-533.25,0.00010046,2]
[405946040,1771435841314,-21954.59510396,0.00010296,2]
[405946041,1771435841323,-533.25,0.00010502,2]
[405946042,1771435841332,-200.0,0.00010548,2]
[405946043,1771435841341,-539.13796622,0.00010548,2]
[405946044,1771435841349,-2500.0,0.00010559,2]
[405946045,1771435841359,-2500.0,0.00010559,2]
[405946046,1771435841368,-269.09940998,0.000107,2]
[405946047,1771435841377,-6453.0,0.00010741,2]
[405946048,1771435841386,-343.0,0.00010758,2]
[405946049,1771435841395,-169.01,0.00010785,2]
[405946050,1771435841404,-1030.93366702,0.000108,2]
[405946051,1771435841413,-1813.59875998,0.000109,2]
[405946052,1771435841422,-1813.59875997,0.000109,2]
[405946053,1771435841431,-166.66,0.00010959,2]
[405946054,1771435841440,-533.25,0.00010959,2]
[405946055,1771435841449,-2500.0,0.00010999,2]
[405946056,1771435841459,-9452.37121348,0.00011,2]
[405946057,1771435841468,-166.66,0.00011068,2]
[405946058,1771435841477,-200.0,0.00011096,2]
[405946059,1771435841486,-28148.9613212,0.00011099,2]
[405946060,1771435841495,-17075.00938732,0.00011099,2]
[405946061,1771435841505,-17075.00938728,0.00011099,2]
[405946062,1771435841515,-17075.00938728,0.00011099,2]
[405946063,1771435841524,-3000.0,0.00011107,2]
[405946064,1771435841533,-3000.0,0.00011107,2]
[405946065,1771435841544,-166.66,0.00011178,2]
[405946066,1771435841552,-166.66,0.00011288,2]
[405946067,1771435841561,-17075.00938728,0.00011379,2]
[405946068,1771435841571,-166.66,0.00011397,2]
[405946069,1771435841580,-28148.9613212,0.00011411,2]
[405946070,1771435841589,-533.25,0.00011416,2]
[405946071,1771435841598,-166.66,0.00011507,2]
[405946072,1771435841607,-21138.47,0.00011507,2]
[405946073,1771435841616,-200.0,0.00011644,2]
[405946074,1771435841625,-3500.0,0.00011655,2]
[405946075,1771435841634,-3500.0,0.00011655,2]
[405946076,1771435841643,-533.25,0.00011872,2]
[405946077,1771435841652,-1813.59875997,0.00011892,2]
[405946078,1771435841661,-230.5838566,0.00012,2]
[405946079,1771435841670,-1000.0,0.00012,2]
[405946080,1771435841679,-160.0,0.0001204,2]
[405946081,1771435841688,-173.62051493,0.0001204,2]
[405946082,1771435841697,-200.0,0.00012192,2]
[405946083,1771435841706,-927.37579683,0.00012203,2]
[405946084,1771435841715,-4000.0,0.00012203,2]
[405946085,1771435841724,-28148.9613212,0.00012222,2]
[405946086,1771435841733,-533.25,0.00012329,2]
[405946087,1771435841742,-17075.00938728,0.00012466,2]
[405946088,1771435841751,-308.43277492,0.000125,2]
[405946089,1771435841760,-200.0,0.0001274,2]
[405946090,1771435841769,-460.671579,0.00012751,2]
[405946091,1771435841778,-116449.46912322,0.000129,2]
[405946092,1771435841787,-5623.94740036,0.00013,2]
[405946093,1771435841797,-7993.76060363,0.00013,15]
[405946094,1771435841806,-28148.9613212,0.00013033,2]
[405946095,1771435841816,-1813.59875997,0.00013094,2]
[405946096,1771435841825,-200.0,0.00013288,2]
[405946097,1771435841834,-152.0,0.00013336,2]
[405946098,1771435841843,-1508.0,0.00013336,2]
[405946099,1771435841852,-152.0,0.00013336,2]
[405946100,1771435841862,-153.0,0.00013336,2]
[405946101,1771435841871,-1508.0,0.00013336,2]
[405946102,1771435841880,-152.0,0.00013336,2]
[405946103,1771435841890,-153.0,0.00013336,2]
[405946104,1771435841899,-1508.0,0.00013336,2]
[405946105,1771435841908,-152.0,0.00013336,2]
[405946106,1771435841917,-153.0,0.00013336,2]
[405946107,1771435841926,-1508.0,0.00013336,2]
[405946108,1771435841935,-152.0,0.00013336,2]
[405946109,1771435841944,-153.0,0.00013336,2]
[405946110,1771435841953,-1508.0,0.00013336,2]
[405946111,1771435841962,-153.0,0.00013336,2]
[405946112,1771435841971,-1508.0,0.00013336,2]
[405946113,1771435841980,-153.0,0.00013336,2]
[405946114,1771435841989,-1508.0,0.00013336,2]
[405946115,1771435842000,-159.0,0.00013336,2]
[405946116,1771435842010,-1508.0,0.00013336,2]
[405946117,1771435842019,-1548.88102762,0.00013336,2]
[405946118,1771435842028,-17075.00938728,0.00013553,2]
[405946119,1771435842037,-198.93,0.00013605,2]
[405946120,1771435842046,-623.2,0.00013698,2]
[405946121,1771435842055,-623.2,0.00013698,2]
[405946122,1771435842064,-623.2,0.00013698,2]
[405946123,1771435842073,-623.2,0.00013698,2]
[405946124,1771435842082,-623.2,0.00013698,2]
[405946125,1771435842091,-623.2,0.00013698,2]
[405946126,1771435842100,-623.2,0.00013698,2]
[405946127,1771435842109,-623.2,0.00013698,2]
[405946128,1771435842119,-623.2,0.00013698,2]
[405946129,1771435842127,-623.2,0.00013698,2]
[405946130,1771435842136,-623.2,0.00013698,2]
[405946131,1771435842145,-623.2,0.00013698,2]
[405946132,1771435842154,-623.2,0.00013698,2]
[405946133,1771435842163,-623.2,0.00013698,2]
[405946134,1771435842171,-500.0,0.00013698,2]
[405946135,1771435842180,-500.0,0.00013698,2]
[405946136,1771435842190,-500.0,0.00013698,2]
[405946137,1771435842202,-500.0,0.00013698,2]
[405946138,1771435842211,-500.0,0.00013698,2]
[405946139,1771435842220,-500.0,0.00013698,2]
[405946140,1771435842229,-500.0,0.00013698,2]
[405946141,1771435842240,-500.0,0.00013698,2]
[405946142,1771435842249,-500.0,0.00013698,2]
[405946143,1771435842258,-500.0,0.00013698,2]
[405946144,1771435842267,-500.0,0.00013698,2]
[405946145,1771435842277,-500.0,0.00013698,2]
[405946146,1771435842286,-500.0,0.00013698,2]
[405946147,1771435842296,-207.45341445,0.00013698,2]
[405946148,1771435842306,-500.0,0.00013698,2]
[405946149,1771435842317,-500.0,0.00013698,2]
[405946150,1771435842327,-500.0,0.00013698,2]
[405946151,1771435842337,-500.0,0.00013698,2]
[405946152,1771435842347,-500.0,0.00013698,2]
[405946153,1771435842355,-500.0,0.00013698,2]
[405946154,1771435842364,-500.0,0.00013698,2]
[405946155,1771435842373,-500.0,0.00013698,2]
[405946156,1771435842382,-500.0,0.00013698,2]
[405946157,1771435842391,-500.0,0.00013698,2]
[405946158,1771435842402,-500.0,0.00013698,2]
[405946159,1771435842413,-500.0,0.00013698,2]
[405946160,1771435842422,-500.0,0.00013698,2]
[405946161,1771435842435,-500.0,0.00013698,2]
[405946162,1771435842446,-595.96,0.00013698,2]
[405946163,1771435842456,-595.96,0.00013698,2]
[405946164,1771435842466,-595.96,0.00013698,2]
[405946165,1771435842476,-595.96,0.00013698,2]
[405946166,1771435842487,-595.96,0.00013698,2]
[405946167,1771435842497,-595.96,0.00013698,2]
[405946168,1771435842506,-595.96,0.00013698,2]
[405946169,1771435842515,-595.96,0.00013698,2]
[405946170,1771435842526,-595.96,0.00013698,2]
[405946171,1771435842537,-595.96,0.00013698,2]
[405946172,1771435842547,-595.96,0.00013698,2]
[405946173,1771435842556,-595.96,0.00013698,2]
[405946174,1771435842565,-595.96,0.00013698,2]
[405946175,1771435842576,-595.96,0.00013698,2]
[405946176,1771435842586,-595.96,0.00013698,2]
[405946177,1771435842596,-595.96,0.00013698,2]
[405946178,1771435842607,-500.0,0.00013698,2]
[405946179,1771435842617,-500.0,0.00013698,2]
[405946180,1771435842627,-500.0,0.00013698,2]
[405946181,1771435842637,-500.0,0.00013698,2]
[405946182,1771435842647,-500.0,0.00013698,2]
[405946183,1771435842658,-500.0,0.00013698,2]
[405946184,1771435842669,-500.0,0.00013698,2]
[405946185,1771435842679,-500.0,0.00013698,2]
[405946186,1771435842691,-500.0,0.00013698,2]
[405946187,1771435842702,-500.0,0.00013698,2]
[405946188,1771435842711,-500.0,0.00013698,2]
[405946189,1771435842720,-500.0,0.00013698,2]
[405946190,1771435842731,-500.0,0.00013698,2]
[405946191,1771435842742,-500.0,0.00013698,2]
[405946192,1771435842752,-500.0,0.00013698,2]
[405946193,1771435842761,-500.0,0.00013698,2]
[405946194,1771435842769,-1121.34,0.00013698,2]
[405946195,1771435842781,-500.0,0.00013698,2]
[405946196,1771435842790,-1121.34,0.00013698,2]
[405946197,1771435842800,-1121.34,0.00013698,2]
[405946198,1771435842809,-500.0,0.00013698,2]
[405946199,1771435842818,-1121.34,0.00013698,2]
[405946200,1771435842827,-500.0,0.00013698,2]
[405946201,1771435842836,-1121.34,0.00013698,2]
[405946202,1771435842845,-500.0,0.00013698,2]
[405946203,1771435842855,-1121.34,0.00013698,2]
[405946204,1771435842864,-500.0,0.00013698,2]
[405946205,1771435842872,-1121.34,0.00013698,2]
[405946206,1771435842881,-551.5455423,0.00013698,2]
[405946207,1771435842890,-1121.34,0.00013698,2]
[405946208,1771435842899,-1121.34,0.00013698,2]
[405946209,1771435842908,-1121.34,0.00013698,2]
[405946210,1771435842917,-1121.34,0.00013698,2]
[405946211,1771435842927,-1121.34,0.00013698,2]
[405946212,1771435842936,-1121.34,0.00013698,2]
[405946213,1771435842944,-1121.34,0.00013698,2]
[405946214,1771435842953,-1121.34,0.00013698,2]
[405946215,1771435842962,-1121.34,0.00013698,2]
[405946216,1771435842971,-500.0,0.00013698,2]
[405946217,1771435842980,-500.0,0.00013698,2]
[405946218,1771435842989,-500.0,0.00013698,2]
[405946219,1771435842998,-500.0,0.00013698,2]
[405946220,1771435843008,-500.0,0.00013698,2]
[405946221,1771435843017,-506.43974224,0.00013698,2]
[405946222,1771435843026,-500.0,0.00013698,2]
[405946223,1771435843035,-500.0,0.00013698,2]
[405946224,1771435843045,-500.0,0.00013698,2]
[405946225,1771435843055,-500.0,0.00013698,2]
[405946226,1771435843064,-500.0,0.00013698,2]
[405946227,1771435843073,-500.0,0.00013698,2]
[405946228,1771435843082,-500.0,0.00013698,2]
[405946229,1771435843091,-500.0,0.00013698,2]
[405946230,1771435843100,-464.29440353,0.00013698,2]
[405946231,1771435843109,-500.0,0.00013698,2]
[405946232,1771435843118,-500.0,0.00013698,2]
[405946233,1771435843127,-500.0,0.00013698,2]
[405946234,1771435843136,-500.0,0.00013698,2]
[405946235,1771435843146,-501.1551627,0.00013698,2]
[405946236,1771435843155,-500.0,0.00013698,2]
[405946237,1771435843164,-500.0,0.00013698,2]
[405946238,1771435843174,-500.0,0.00013698,2]
[405946239,1771435843185,-500.0,0.00013698,2]
[405946240,1771435843197,-500.0,0.00013698,2]
[405946241,1771435843207,-500.0,0.00013698,2]
[405946242,1771435843217,-500.0,0.00013698,2]
[405946243,1771435843227,-500.0,0.00013698,2]
[405946244,1771435843237,-500.0,0.00013698,2]
[405946245,1771435843246,-500.0,0.00013698,2]
[405946246,1771435843255,-500.0,0.00013698,2]
[405946247,1771435843267,-500.0,0.00013698,2]
[405946248,1771435843278,-500.0,0.00013698,2]
[405946249,1771435843289,-500.0,0.00013698,2]
[405946250,1771435843301,-500.0,0.00013698,2]
[405946251,1771435843310,-500.0,0.00013698,2]
[405946252,1771435843319,-500.0,0.00013698,2]
[405946253,1771435843328,-500.0,0.00013698,2]
[405946254,1771435843337,-500.0,0.00013698,2]
[405946255,1771435843347,-500.0,0.00013698,2]
[405946256,1771435843358,-500.0,0.00013698,2]
[405946257,1771435843367,-500.0,0.00013698,2]
[405946258,1771435843376,-500.0,0.00013698,2]
[405946259,1771435843386,-500.0,0.00013698,2]
[405946260,1771435843395,-500.0,0.00013698,2]
[405946261,1771435843404,-500.0,0.00013698,2]
[405946262,1771435843413,-500.0,0.00013698,2]
[405946263,1771435843423,-500.0,0.00013698,2]
[405946264,1771435843432,-500.0,0.00013699,2]
[405946265,1771435843441,-500.0,0.00013699,2]
[405946266,1771435843450,-500.0,0.00013699,2]
[405946267,1771435843459,-500.0,0.00013699,2]
[405946268,1771435843468,-500.0,0.00013699,2]
[405946269,1771435843478,-972.0,0.00013699,2]
[405946270,1771435843488,-150.0,0.00013699,2]
[405946271,1771435843497,-534.0,0.00013699,2]
[405946272,1771435843506,-500.0,0.00013699,2]